bitfinex-derivatives/quotes_SOLF0:USTF0_20240906
["timestamp","ask_amount","ask_price","bid_price","bid_amount"]
[1725654133341,19.19,125.26,125.2,4.02743163]
[1725654133538,19.19,125.26,125.17,1.2887]
[1725654134042,19.19,125.26,125.21,3.9962]
[1725654134345,19.19,125.26,125.17,5.21325662]
[1725654134637,19.19,125.26,125.21,3.9961]
[1725654136541,23.1848,125.26,125.2,3.9964]
[1725654136742,19.19,125.26,125.17,5.21325662]
[1725654137043,19.19,125.26,125.21,3.996]
[1725654137433,19.19,125.26,125.17,5.21325662]
[1725654138042,2.706,125.27,125.25,3.9949]
[1725654138244,19.19,125.3,125.2,19.19]
[1725654138545,2.7272,125.3,125.21,19.19]
[1725654139246,2.7272,125.3,125.25,3.9947]
[1725654139448,2.7272,125.3,125.25,7.95650342]
[1725654139835,6.7207,125.3,125.25,3.9947]
[1725654140032,25.9107,125.3,125.24,3.9952]
[1725654140237,21.9172,125.3,125.19,19.19]
[1725654140541,19.19,125.38,125.26,19.19]
[1725654140744,3.976,125.37,125.27,1.4131]
[1725654141135,3.976,125.37,125.28,19.19]
[1725654141336,7.9672,125.37,125.28,19.19]
[1725654141538,3.976,125.37,125.28,19.19]
[1725654142242,19.19,125.36,125.27,1.4131]
[1725654142642,19.19,125.36,125.29,3.9936]
[1725654143447,19.19,125.36,125.3,3.9933]
[1725654143643,19.19,125.36,125.27,1.4131]
[1725654143851,19.19,125.35,125.27,1.4131]
[1725654144539,3.9924,125.34,125.28,3.9937]
[1725654144739,19.19,125.35,125.27,1.4131]
[1725654145548,3.9924,125.34,125.28,3.9938]
[1725654146152,3.9924,125.33,125.27,3.9943]
[1725654146453,19.19,125.31,125.24,1.3966]
[1725654146750,11.8612396,125.3,125.21,19.19]
[1725654148056,3.9723,125.3,125.21,19.19]
[1725654148353,3.9942,125.28,125.22,3.9958]
[1725654148556,19.19,125.29,125.2,2.82990927]
[1725654149256,19.19,125.29,125.2,1.3622]
[1725654149558,3.9941,125.28,125.22,3.9957]
[1725654151557,3.9943,125.27,125.22,3.9957]
[1725654152059,19.19,125.29,125.22,3.9957]
[1725654152264,19.19,125.29,125.2,1.3622]
[1725654152556,19.19,125.27,125.17,19.19]
[1725654152747,19.19,125.27,125.17,4.08806967]
[1725654152951,19.19,125.27,125.19,3.9967]
[1725654153355,3.9951,125.25,125.19,3.9967]
[1725654153557,2.6825,125.24,125.19,3.9967]
[1725654153959,2.6825,125.24,125.16,1.4055]
[1725654154161,4.0236,125.24,125.16,1.4055]
[1725654154462,7.98501118,125.23,125.17,8.00619552]
[1725654154668,19.19,125.23,125.13,19.19]
[1725654154865,4.04996261,125.22,125.13,23.1848067]
[1725654155066,19.19,125.23,125.13,23.1848067]
[1725654155565,3.9961,125.22,125.16,3.9978]
[1725654155761,3.89928306,125.23,125.13,23.1848067]
[1725654155961,3.996,125.22,125.16,3.9976]
[1725654156161,19.19,125.23,125.13,23.25994664]
[1725654156365,19.19,125.23,125.18,3.9972]
[1725654156565,19.19,125.23,125.13,23.25994664]
[1725654157167,23.1856,125.23,125.17,3.9972]
[1725654157365,4.0236,125.24,125.15,19.19]
[1725654158067,4.0236,125.24,125.19,3.9969]
[1725654158260,4.0236,125.24,125.16,1.4027]
[1725654158663,4.0236,125.24,125.18,3.9971]
[1725654159262,8.0189,125.24,125.18,3.9971]
[1725654159468,4.0236,125.24,125.18,3.9971]
[1725654159858,4.0236,125.24,125.16,1.4027]
[1725654160366,4.0236,125.24,125.18,3.9971]
[1725654160968,4.0236,125.24,125.16,1.4027]
[1725654161567,8.0191,125.24,125.18,3.997]
[1725654162469,4.0236,125.24,125.16,1.4027]
[1725654162969,23.2136,125.24,125.13,23.25994664]
[1725654163569,3.9961,125.22,125.16,3.9976]
[1725654163872,19.19,125.2,125.11,20.5261]
[1725654164074,19.19,125.2,125.11,24.56399124]
[1725654164375,19.19,125.2,125.11,4.03789124]
[1725654164668,19.19,125.2,125.09,19.19]
[1725654164877,3.9974,125.18,125.13,3.9988]
[1725654165064,2.7418,125.17,125.07,20.5261]
[1725654165271,2.7418,125.17,125.09,3.9999]
[1725654165272,3.9983,125.15,125.09,3.9999]
[1725654165474,3.9983,125.15,125.08,3.93997148]
[1725654165670,19.19,125.16,125.08,3.93997148]
[1725654165966,19.19,125.16,125.08,3.94360591]
[1725654166370,3.9984,125.15,125.09,3.9998]
[1725654166567,19.19,125.16,125.04,1.2168]
[1725654166763,19.19,125.16,125.04,5.16360559]
[1725654166963,3.9989,125.13,125.07,4.0007]
[1725654167276,4.03039724,125.13,125.03,24.48750643]
[1725654167674,3.9992,125.12,125.03,24.48750643]
[1725654168072,2.7295,125.11,125.03,24.48750643]
[1725654168270,2.7295,125.11,125.06,4.0008]
[1725654168870,6.729,125.11,125.01,19.19]
[1725654169073,12.00050547,125.11,125.01,19.19]
[1725654169272,8.00100547,125.11,125.01,19.19]
[1725654169570,8.00100547,125.11,125.0,1.3996]
[1725654169571,19.19,125.08,125.0,1.3596]
[1725654169975,19.19,125.08,124.97,19.19]
[1725654170276,19.19,125.08,124.97,23.17655772]
[1725654170576,4.0013,125.06,125.0,4.0029]
[1725654170978,23.22136399,125.08,125.01,4.0024]
[1725654171371,23.22136399,125.08,124.96,19.19]
[1725654171673,23.22136399,125.08,124.98,19.19]
[1725654172075,4.0007,125.07,125.01,4.0024]
[1725654173271,4.0012,125.06,124.96,19.19]
[1725654173773,4.0012,125.06,125.0,4.0028]
[1725654173980,19.19,125.05,124.96,19.19]
[1725654174278,4.03136399,125.08,124.92,4.0054]
[1725654174279,19.19,124.99,124.92,4.0054]
[1725654174475,19.19,125.0,124.92,4.00103919]
[1725654174679,19.19,125.0,124.89,21.6636]
[1725654174872,19.19,125.0,124.91,19.19]
[1725654175068,19.19,125.0,124.92,1.377]
[1725654175577,19.19,125.0,124.94,4.0046]
[1725654175788,19.19,125.0,124.92,1.377]
[1725654176379,19.19,124.98,124.92,1.377]
[1725654176576,2.7434,124.97,124.78,8.35846946]
[1725654176776,2.7434,124.97,124.86,19.19]
[1725654176777,8.08932164,124.97,124.86,19.19]
[1725654177078,4.1578,124.97,124.91,4.0058]
[1725654177675,8.1618,124.97,124.86,23.12953045]
[1725654178073,23.1945,124.96,124.88,4.0068]
[1725654178272,19.19,124.94,124.86,3.93953045]
[1725654178578,23.1951,124.94,124.86,4.0072]
[1725654178882,23.1951,124.94,124.87,4.03589489]
[1725654179073,4.0053,124.93,124.86,4.0074]
[1725654179273,19.19,124.94,124.86,8.06292746]
[1725654179475,19.19,124.94,124.86,4.0074]
[1725654179883,19.19,124.96,124.87,8.0144477]
[1725654180074,19.19,124.96,124.87,4.007]
[1725654180274,19.19,124.94,124.86,3.95095399]
[1725654180580,19.19,124.9,124.81,1.4156]
[1725654180780,2.6719,124.89,124.82,4.06714674]
[1725654181079,2.6719,124.89,124.81,1.4156]
[1725654181278,2.6719,124.89,124.83,19.19]
[1725654181890,2.6719,124.89,124.83,23.20225568]
[1725654182280,2.6719,124.89,124.86,4.0074]
[1725654182786,2.6719,124.89,124.87,4.0071]
[1725654182980,1.4144,124.97,124.85,19.19]
[1725654183180,4.0049,124.95,124.85,19.19]
[1725654183381,2.6795,124.96,124.85,19.19]
[1725654183783,6.684,124.96,124.85,19.19]
[1725654184183,2.6795,124.96,124.85,19.19]
[1725654184379,2.6795,124.96,124.83,4.01225568]
[1725654184682,19.19,124.94,124.82,27.172]
[1725654184976,2.6795,124.96,124.82,23.25491794]
[1725654185176,19.19,124.95,124.84,19.19]
[1725654185583,23.1946,124.95,124.88,4.0066]
[1725654185883,19.19,124.94,124.87,4.0743587]
[1725654186078,19.19,124.94,124.82,19.19]
[1725654186274,19.19,124.94,124.83,1.47246711]
[1725654186481,2.6795,124.96,124.87,19.19]
[1725654187178,21.8695,124.96,124.85,19.19]
[1725654187388,19.19,124.91,124.81,20.6056]
[1725654187681,19.19,124.91,124.81,24.64870686]
[1725654187887,19.19,124.91,124.81,5.45870686]
[1725654188189,1.2844,124.9,124.81,5.45870686]
[1725654188376,23.13051177,124.89,124.81,5.45870686]
[1725654188572,25.82881177,124.89,124.81,5.45870686]
[1725654188775,23.1973,124.87,124.8,4.0093]
[1725654188987,23.10766474,124.87,124.8,4.00263966]
[1725654189185,3.91766474,124.87,124.79,1.2501]
[1725654189375,21.8883,124.89,124.79,5.18981012]
[1725654189883,25.99635667,124.89,124.79,5.18981012]
[1725654190188,6.80635667,124.89,124.81,19.19]
[1725654190386,2.6983,124.89,124.79,24.37981012]
[1725654190987,2.6983,124.89,124.83,19.19]
[1725654191386,2.6983,124.89,124.84,19.19]
[1725654191583,1.4094,124.89,124.79,5.18981012]
[1725654191776,1.4094,124.89,124.79,24.37981012]
[1725654191980,1.4094,124.89,124.82,19.19]
[1725654192183,1.4094,124.89,124.84,4.0081]
[1725654193385,1.4094,124.89,124.83,1.413]
[1725654193786,5.4159,124.89,124.83,1.413]
[1725654193978,1.4094,124.89,124.83,1.413]
[1725654194183,19.19,124.97,124.85,19.19]
[1725654194383,4.0043,124.96,124.87,19.19]
[1725654194584,4.07894457,124.97,124.89,19.19]
[1725654194890,19.19,124.95,124.84,19.19]
[1725654195283,23.25536878,124.97,124.86,19.19]
[1725654195593,19.19,124.97,124.86,23.20209318]
[1725654196086,19.19,124.95,124.84,19.19]
[1725654196296,19.19,124.97,124.86,19.19]
[1725654196588,4.0052,124.94,124.87,4.0069]
[1725654196992,19.19,124.95,124.86,3.92196529]
[1725654197285,19.19,124.95,124.84,19.19]
[1725654197695,4.0052,124.94,124.87,4.0069]
[1725654197988,19.19,124.97,124.87,4.03692842]
[1725654198287,19.19,124.97,124.89,4.0064]
[1725654198490,19.19,124.94,124.88,3.96522668]
[1725654198792,19.19,124.94,124.84,19.19]
[1725654199186,4.0055,124.93,124.86,4.0074]
[1725654199389,4.0055,124.93,124.86,8.09239663]
[1725654199587,19.19,124.92,124.87,4.007]
[1725654199789,19.19,124.94,124.83,20.603]
[1725654200590,4.0061,124.91,124.83,1.413]
[1725654200795,4.0061,124.91,124.84,4.0079]
[1725654201000,5.4251,124.91,124.84,4.0079]
[1725654201299,1.419,124.91,124.85,4.0074]
[1725654201499,19.19,124.96,124.85,19.19]
[1725654201696,4.0051,124.94,124.87,4.0069]
[1725654201898,19.19,124.94,124.86,4.09424631]
[1725654202196,19.19,124.96,124.86,19.19]
[1725654202501,20.609,124.98,124.88,19.19]
[1725654202694,20.609,124.98,124.9,19.19]
[1725654202695,1.419,124.98,124.9,19.19]
[1725654203198,1.419,124.98,124.9,21.6518]
[1725654203394,1.419,124.98,124.93,4.005]
[1725654203593,27.03381229,125.19,124.67,3.64435949]
[1725654203795,8.3591889,125.1,124.88,19.19]
[1725654203995,19.19,124.98,124.89,7.75144953]
[1725654204198,19.19,124.98,124.89,3.7654]
[1725654204397,4.0690004,124.97,124.89,7.7718]
[1725654204593,19.19,124.98,124.89,3.7654]
[1725654204789,19.19,124.91,124.76,4.06138655]
[1725654204995,19.19,124.91,124.81,2.5378]
[1725654204996,19.19,124.89,124.81,2.5378]
[1725654205293,19.19,125.0,124.77,1.4133]
[1725654205597,19.19,124.85,124.77,5.4234]
[1725654205793,23.27659891,124.85,124.77,9.51200175]
[1725654205998,19.19,124.85,124.77,5.50190175]
[1725654206692,19.19,124.87,124.77,5.50190175]
[1725654206995,19.19,124.93,124.81,19.19]
[1725654207191,19.19,124.95,124.83,19.19]
[1725654207502,19.19,124.95,124.84,1.4133]
[1725654207694,19.19,124.95,124.84,5.33406358]
[1725654207893,19.19,124.93,124.84,1.4133]
[1725654208094,19.19,124.93,124.85,4.02090569]
[1725654208289,23.28340857,124.93,124.84,1.4133]
[1725654208490,19.19,124.93,124.84,1.4133]
[1725654208693,19.19,124.91,124.79,7.982]
[1725654208894,4.0069,124.88,124.81,4.0088]
[1725654209300,19.19,124.89,124.8,1.3164]
[1725654209509,19.19,124.89,124.8,20.5064]
[1725654209801,19.19,124.89,124.8,1.3164]
[1725654210197,19.19,124.85,124.78,2.7548]
[1725654210697,23.198,124.85,124.78,6.7646]
[1725654211204,19.19,124.88,124.75,1.3164]
[1725654211499,19.19,124.82,124.73,4.06614559]
[1725654211699,4.0091,124.81,124.7,7.982]
[1725654211899,19.19,124.79,124.71,1.47374212]
[1725654212306,19.19,124.79,124.73,4.0114]
[1725654212504,19.19,124.79,124.69,22.0122]
[1725654212806,4.01,124.78,124.69,2.8222]
[1725654213005,6.6312,124.78,124.69,2.8222]
[1725654213199,19.19,124.77,124.69,2.8222]
[1725654213501,6.6312,124.78,124.65,19.19]
[1725654213502,19.19,124.75,124.65,19.19]
[1725654213708,19.19,124.75,124.66,2.8414231]
[1725654214006,31.21137968,124.77,124.7,4.0124]
[1725654214200,27.20097968,124.77,124.67,23.12]
[1725654214398,23.12,124.77,124.71,4.0122]
[1725654214594,23.12,124.77,124.67,3.99501775]
[1725654214800,23.12,124.77,124.66,1.3672]
[1725654214996,10.70454132,124.78,124.66,5.34296272]
[1725654215192,10.70454132,124.78,124.69,23.12]
[1725654215193,2.6212,124.78,124.69,23.12]
[1725654215599,2.6212,124.78,124.69,35.07174553]
[1725654216097,24.418,124.83,124.7,1.47402643]
[1725654216303,2.6681,124.82,124.72,23.12]
[1725654216503,2.6681,124.82,124.73,2.6767]
[1725654217406,6.677,124.82,124.75,4.0107]
[1725654218007,23.12,124.81,124.73,1.3672]
[1725654218200,2.6681,124.82,124.69,3.96974553]
[1725654218201,23.12,124.79,124.69,3.96974553]
[1725654218504,27.1299,124.79,124.72,4.0117]
[1725654219305,4.01,124.78,124.72,4.0117]
[1725654219506,23.12,124.79,124.72,4.0117]
[1725654219914,4.01,124.78,124.72,4.0117]
[1725654220108,23.12,124.79,124.71,4.0121]
[1725654220307,23.12,124.79,124.68,5.48780701]
[1725654220510,4.0106,124.77,124.68,5.48780701]
[1725654220709,2.5854,124.76,124.7,4.0124]
[1725654221113,6.5961,124.76,124.68,1.3983]
[1725654221302,7.9154,124.76,124.68,1.3983]
[1725654221505,3.9047,124.76,124.68,1.3983]
[1725654221910,7.87123635,124.76,124.68,1.3983]
[1725654222106,7.87123635,124.76,124.66,5.3600854]
[1725654222303,23.12,124.75,124.65,3.93163661]
[1725654222605,23.12,124.75,124.64,1.2844]
[1725654222606,23.12,124.72,124.64,1.2844]
[1725654222812,27.132,124.72,124.66,4.0137]
[1725654223316,23.12,124.72,124.66,4.0137]
[1725654223509,23.12,124.72,124.67,4.0134]
[1725654223708,23.12,124.75,124.64,5.38331469]
[1725654224014,3.9047,124.76,124.65,1.47443506]
[1725654224204,4.0112,124.75,124.65,1.47443506]
[1725654224411,3.9047,124.76,124.65,9.45643506]
[1725654224612,3.9047,124.76,124.71,4.0121]
[1725654224812,2.5854,124.76,124.66,23.12]
[1725654225017,23.12,124.79,124.68,23.12]
[1725654225320,23.12,124.79,124.74,4.011]
[1725654225723,23.12,124.79,124.7,1.3832]
[1725654225915,4.1801,124.82,124.7,1.3832]
[1725654225916,23.12,124.81,124.7,1.3832]
[1725654226138,23.12,124.81,124.7,24.5032]
[1725654226423,23.12,124.81,124.75,4.0107]
[1725654226617,23.12,124.81,124.73,4.03955975]
[1725654226819,27.1291,124.81,124.75,4.0109]
[1725654227121,23.12,124.79,124.7,1.3832]
[1725654227324,4.0094,124.8,124.74,4.0111]
[1725654227624,27.3001,124.82,124.71,3.95435315]
[1725654227823,27.3001,124.82,124.7,1.3832]
[1725654228020,4.1801,124.82,124.72,23.12]
[1725654228215,4.1801,124.82,124.72,27.20870491]
[1725654228832,4.1801,124.82,124.77,4.0101]
[1725654229120,4.1801,124.82,124.72,4.08870491]
[1725654229319,8.1889,124.82,124.7,24.5032]
[1725654229525,8.1889,124.82,124.7,32.4852]
[1725654230123,4.0091,124.81,124.7,32.4852]
[1725654230320,4.1801,124.82,124.7,32.4852]
[1725654230926,23.12,124.81,124.7,32.4852]
[1725654231321,23.12,124.81,124.75,4.0107]
[1725654231918,23.12,124.81,124.72,3.94160467]
[1725654232122,4.1801,124.82,124.72,7.982]
[1725654232325,4.1801,124.82,124.72,12.00541231]
[1725654232829,4.1801,124.82,124.72,35.12541231]
[1725654233237,2.7909,124.82,124.72,35.12541231]
[1725654233623,2.7909,124.82,124.73,7.982]
[1725654233934,2.7909,124.82,124.77,4.0101]
[1725654234138,2.7909,124.82,124.73,7.982]
[1725654234634,111.4906417,124.85,124.74,31.102]
[1725654234837,111.4906417,124.85,124.75,2.7354]
[1725654235135,111.4906417,124.85,124.8,4.0092]
[1725654235326,111.4906417,124.85,124.76,9.3527]
[1725654235527,2.7953,124.87,124.77,23.12]
[1725654235730,2.7953,124.87,124.79,23.12]
[1725654236131,23.12,124.9,124.79,23.12]
[1725654236327,23.12,124.9,124.8,7.982]
[1725654236637,4.0359237,124.91,124.79,23.12]
[1725654236936,23.12,124.92,124.81,23.12]
[1725654237127,23.12,124.92,124.85,4.0075]
[1725654237538,23.12,124.92,124.83,3.99638638]
[1725654238035,23.12,124.9,124.82,2.6952]
[1725654238233,23.12,124.9,124.82,6.72725766]
[1725654238535,23.12,124.92,124.82,6.72725766]
[1725654239330,31.10715342,124.94,124.83,1.3785]
[1725654239534,23.12,124.92,124.83,1.3785]
[1725654240541,31.10715342,124.94,124.83,1.3785]
[1725654240740,27.1773,124.94,124.83,32.4805]
[1725654240944,4.0573,124.94,124.83,24.4985]
[1725654241133,2.7026,124.94,124.83,24.4985]
[1725654241332,2.7026,124.94,124.86,23.12]
[1725654241530,24.4061,124.99,124.86,23.12]
[1725654241740,2.6959,124.98,124.89,23.12]
[1725654242136,2.6959,124.98,124.9,5.45613064]
[1725654242334,23.12,124.96,124.83,23.12]
[1725654242540,23.12,124.94,124.83,1.4127]
[1725654243041,27.1249,124.94,124.86,4.0073]
[1725654243344,23.12,124.9,124.76,23.12]
[1725654243538,23.12,124.88,124.77,4.1155]
[1725654243734,23.12,124.87,124.77,28.44327438]
[1725654243934,2.7518,124.89,124.77,36.42527438]
[1725654244138,2.7518,124.89,124.79,23.12]
[1725654244340,27.17840779,124.9,124.8,2.72]
[1725654244536,2.8004,124.91,124.82,23.12]
[1725654244737,2.8004,124.91,124.83,1.3701]
[1725654245238,2.8004,124.91,124.86,4.0071]
[1725654245440,27.1251,124.94,124.87,4.08845524]
[1725654245637,29.8786,124.94,124.83,1.3701]
[1725654246041,2.7535,124.94,124.86,23.12]
[1725654246349,23.12,125.01,124.92,4.0055]
[1725654246545,2.7535,124.99,124.89,23.12]
[1725654246846,2.7535,124.99,124.9,1.3701]
[1725654247739,2.7535,124.99,124.87,10.6782]
[1725654247740,23.12,124.96,124.87,2.6962]
[1725654248045,23.12,124.94,124.86,4.05223054]
[1725654248346,23.12,124.94,124.85,1.3149]
[1725654248546,27.125,124.94,124.87,4.0069]
[1725654248747,23.12,124.94,124.85,1.3149]
[1725654248941,2.7772,124.93,124.85,1.3149]
[1725654249145,2.7772,124.93,124.86,4.01257348]
[1725654249843,4.0056,124.92,124.82,23.12]
[1725654250051,2.7772,124.93,124.83,1.401]
[1725654250243,2.7772,124.93,124.83,5.30756805]
[1725654251046,2.7772,124.93,124.86,23.12]
[1725654251448,1.383,124.93,124.86,23.12]
[1725654251749,4.0041,124.97,124.86,23.12]
[1725654252052,4.0041,124.97,124.9,4.0059]
[1725654252254,4.0314,124.98,124.88,23.12]
[1725654252447,2.6888,124.98,124.89,1.401]
[1725654252849,6.6924,124.98,124.89,5.36086937]
[1725654253051,2.6888,124.98,124.89,5.36086937]
[1725654253353,2.6888,124.98,124.92,4.0053]
[1725654254348,1.3788,124.98,124.89,5.36086937]
[1725654254558,1317.71265,125.0,124.93,23.12]
[1725654255550,1317.71265,125.0,124.95,4.0043]
[1725654255742,1317.71265,125.0,124.96,4.10043512]
[1725654255956,1317.71265,125.0,124.93,23.12]
[1725654256147,1317.71265,125.0,124.96,4.004]
[1725654256345,1317.71265,125.0,124.97,3.92728906]
[1725654256553,1317.71265,125.0,124.96,4.004]
[1725654256747,1317.71265,125.0,124.97,3.91407665]
[1725654257758,1317.71265,125.0,124.96,4.004]
[1725654257959,1317.71265,125.0,124.96,3.98734548]
[1725654258147,1317.71265,125.0,124.94,2.7511]
[1725654258461,1317.71265,125.0,124.95,4.0043]
[1725654258664,1317.71265,125.0,124.94,2.7511]
[1725654258859,1317.71265,125.0,124.91,23.12]
[1725654258860,1321.71575,125.0,124.91,23.12]
[1725654259062,1317.71265,125.0,124.91,23.12]
[1725654259456,4.0033,124.99,124.91,23.12]
[1725654259652,1317.71265,125.0,124.94,4.0049]
[1725654260662,1317.71265,125.0,124.91,23.12]
[1725654261157,1317.71265,125.0,124.93,4.0051]
[1725654261358,1317.71265,125.0,124.9,2.734]
[1725654261567,1321.71565,125.0,124.93,4.005]
[1725654261859,1321.71565,125.0,124.9,2.734]
[1725654261860,1321.71565,125.0,124.91,23.12]
[1725654262058,1317.71265,125.0,124.91,19.21]
[1725654262855,1317.71265,125.0,124.95,4.0044]
[1725654263063,1317.71265,125.0,124.96,4.04011803]
[1725654264058,1317.71265,125.0,124.94,19.21]
[1725654265761,1317.71265,125.0,124.92,19.21]
[1725654266169,19.21,124.98,124.9,2.734]
[1725654266367,2.6343,124.97,124.9,2.734]
[1725654266561,2.6343,124.97,124.91,4.0056]
[1725654266867,2.6343,124.97,124.89,1.401]
[1725654266868,19.21,124.96,124.89,1.401]
[1725654267063,19.21,124.94,124.88,4.06149591]
[1725654267259,3.93057033,124.96,124.86,19.21]
[1725654267459,3.93057033,124.96,124.86,24.55138646]
[1725654267860,2.6343,124.97,124.88,19.21]
[1725654268072,6.55165765,124.97,124.88,19.21]
[1725654268265,2.6343,124.97,124.88,19.21]
[1725654268569,2.6343,124.97,124.9,19.21]
[1725654268768,2.6343,124.97,124.94,4.0048]
[1725654268970,1336.92265,125.0,124.94,3.94713881]
[1725654269268,1317.71265,125.0,124.94,4.0047]
[1725654269573,1317.71265,125.0,124.95,3.95955246]
[1725654269868,1317.71265,125.0,124.95,4.0044]
[1725654270071,1317.71265,125.0,124.95,7.97596566]
[1725654270463,1336.92265,125.0,124.91,2.7669]
[1725654270872,1317.71265,125.0,124.94,4.0047]
[1725654271173,1317.71265,125.0,124.94,8.07957923]
[1725654271473,1317.71265,125.0,124.94,4.0047]
[1725654271872,1321.71565,125.0,124.94,8.02792244]
[1725654272071,1340.77265,125.0,124.91,1.4219]
[1725654272269,4.0035,124.99,124.91,1.4219]
[1725654272469,4.0035,124.99,124.92,4.0053]
[1725654272773,1340.77265,125.0,124.92,4.0053]
[1725654272972,1317.71265,125.0,124.92,4.0053]
[1725654273472,1317.71265,125.0,124.88,23.06]
[1725654273967,27.0638,124.98,124.88,23.06]
[1725654274177,2.6737,124.97,124.88,23.06]
[1725654274365,2.6737,124.97,124.88,31.042]
[1725654274773,2.6737,124.97,124.93,4.005]
[1725654274974,1317.71265,125.0,124.92,23.06]
[1725654275163,1317.71265,125.0,124.95,4.0043]
[1725654275364,1317.71265,125.0,124.95,4.08736619]
[1725654275569,1317.71265,125.0,124.93,1.3635]
[1725654275879,1317.71265,125.0,124.94,23.06]
[1725654276972,1317.71265,125.0,124.94,31.042]
[1725654277171,1317.71265,125.0,124.96,23.06]
[1725654277971,1317.71265,125.0,124.99,4.0033]
[1725654280678,1315.57455,125.0,124.99,27.0633]
[1725654281076,1312.50455002,125.0,124.99,27.0633]
[1725654281779,1152.63625002,125.0,124.99,27.0633]
[1725654282076,1148.35925002,125.0,124.99,27.0633]
[1725654282270,1144.92755002,125.0,124.99,31.13884762]
[1725654282470,1139.70885002,125.0,124.99,27.0633]
[1725654282678,1139.70885002,125.0,124.99,31.04881343]
[1725654282980,1139.70885002,125.0,124.94,23.06]
[1725654283382,1139.70885002,125.0,124.98,4.0034]
[1725654284384,1139.70885002,125.0,124.99,4.0033]
[1725654285489,1139.70885002,125.0,124.99,27.0633]
[1725654286984,1139.70885002,125.0,124.99,4.0033]
[1725654288787,1139.70885002,125.0,124.99,27.0633]
[1725654288983,1136.70885002,125.0,124.99,27.0633]
[1725654289184,975.24885002,125.0,124.99,27.0633]
[1725654289482,975.24885002,125.0,124.99,31.05553514]
[1725654290382,975.24885002,125.0,124.99,7.99553514]
[1725654292588,809.46885002,125.0,124.99,27.21553514]
[1725654293180,779.35885002,125.0,124.99,27.21553514]
[1725654293988,779.35885002,125.0,124.99,23.2233]
[1725654293989,775.35885002,125.0,124.99,23.2233]
[1725654294486,772.35885002,125.0,124.99,23.2233]
[1725654294687,772.35885002,125.0,124.99,27.26171407]
[1725654295387,636.68885002,125.0,124.99,27.26171407]
[1725654296387,636.68885002,125.0,124.99,8.04171407]
[1725654299094,636.68885002,125.0,124.99,4.03841407]
[1725654299389,636.68885002,125.0,124.95,19.22]
[1725654299592,636.68885002,125.0,124.99,4.0033]
[1725654299787,636.68885002,125.0,124.99,7.93199185]
[1725654300183,636.68885002,125.0,124.99,3.92869185]
[1725654300388,636.68885002,125.0,124.95,19.22]
[1725654300791,636.68885002,125.0,124.99,4.0033]
[1725654301394,636.68885002,125.0,124.99,7.95702836]
[1725654304798,636.68885002,125.0,124.99,3.95372836]
[1725654305007,636.68885002,125.0,124.95,19.22]
[1725654305203,636.68885002,125.0,124.98,4.0033]
[1725654305698,636.68885002,125.0,124.95,23.28266751]
[1725654305897,636.68885002,125.0,124.98,4.0034]
[1725654306296,636.68885002,125.0,124.95,4.06266751]
[1725654306499,636.68885002,125.0,124.99,4.0033]
[1725654306701,632.68885002,125.0,124.99,4.0033]
[1725654307196,466.90885002,125.0,124.99,27.22473937]
[1725654307397,466.90885002,125.0,124.99,8.00473937]
[1725654307598,466.90885002,125.0,124.99,4.00143937]
[1725654307903,466.90885002,125.0,124.98,4.0034]
[1725654308293,466.90885002,125.0,124.99,4.0269752]